bitfinex/quotes_BTCUSD_20250825
["timestamp","ask_amount","ask_price","bid_price","bid_amount"]
[1756131371508,0.0002,112130.0,112120.0,2.41489516]
[1756131371893,0.0002,112130.0,112120.0,2.41689516]
[1756131372127,0.0002,112130.0,112120.0,2.48069669]
[1756131372333,0.0002,112130.0,112120.0,2.47461669]
[1756131373540,0.0002,112130.0,112120.0,2.47861669]
[1756131373960,0.0002,112130.0,112120.0,2.31229669]
[1756131374162,0.0002,112130.0,112120.0,1.3476256]
[1756131374384,0.0002,112130.0,112120.0,2.47857669]
[1756131374588,0.0002,112130.0,112120.0,2.31229669]
[1756131374795,0.0002,112130.0,112120.0,2.47457669]
[1756131377231,0.0002,112130.0,112120.0,1.3436256]
[1756131377433,0.0002,112130.0,112120.0,1.5098656]
[1756131377832,0.0002,112130.0,112120.0,2.47453669]
[1756131378029,0.0002,112130.0,112120.0,2.30829669]
[1756131378247,0.0002,112130.0,112120.0,2.47449669]
[1756131378459,0.0002,112130.0,112120.0,1.5138256]
[1756131379496,0.0002,112130.0,112120.0,2.47849669]
[1756131379908,0.0002,112130.0,112120.0,2.41469516]
[1756131380884,0.0002,112130.0,112120.0,1.28382407]
[1756131381090,0.0002,112130.0,112120.0,1.44994407]
[1756131381292,0.0002,112130.0,112120.0,1.24742014]
[1756131381447,0.00226,112130.0,112120.0,0.92057014]
[1756131381652,0.00226,112130.0,112120.0,0.90098112]
[1756131382074,0.00226,112130.0,112120.0,0.98948505]
[1756131382278,0.00226,112130.0,112120.0,1.00693407]
[1756131382690,0.00527,112130.0,112120.0,0.85483407]
[1756131382927,0.00527,112130.0,112120.0,0.83738505]
[1756131383133,0.00527,112130.0,112120.0,0.67126505]
[1756131383343,0.00527,112130.0,112120.0,0.83734505]
[1756131383745,0.00527,112130.0,112120.0,0.67126505]
[1756131383948,0.00527,112130.0,112120.0,0.83734505]
[1756131384204,0.00527,112130.0,112120.0,1.73985807]
[1756131385001,0.00226,112130.0,112120.0,1.74195807]
[1756131385214,0.0002,112130.0,112120.0,1.74195807]
[1756131385418,0.00236,112130.0,112120.0,1.74512807]
[1756131385627,0.00236,112130.0,112120.0,1.74195807]
[1756131386184,0.00854559,112130.0,112120.0,1.74512807]
[1756131386411,0.01070559,112130.0,112120.0,1.74195807]
[1756131386666,0.01070559,112130.0,112120.0,1.74295807]
[1756131387051,0.01070559,112130.0,112120.0,1.74085807]
[1756131387408,0.00236,112130.0,112120.0,1.74085807]
[1756131387623,0.00236,112130.0,112120.0,2.01431807]
[1756131387624,0.0002,112130.0,112120.0,2.01431807]
[1756131387859,0.0002,112130.0,112120.0,2.01631807]
[1756131388082,0.00236,112130.0,112120.0,2.01631807]
[1756131388313,0.00236,112130.0,112120.0,2.01314807]
[1756131388529,0.00548,112130.0,112120.0,2.01105807]
[1756131390737,0.00548,112130.0,112120.0,1.84497807]
[1756131390944,0.00548,112130.0,112120.0,2.01093807]
[1756131391612,0.00548,112130.0,112120.0,1.99348905]
[1756131391856,0.18384439,112130.0,112120.0,1.64914875]
[1756131392072,0.52384439,112130.0,112120.0,1.54690875]
[1756131392276,0.54889282,112130.0,112120.0,0.98094875]
[1756131392483,0.37052843,112130.0,112120.0,1.34273807]
[1756131392702,0.37052843,112130.0,112120.0,1.34269807]
[1756131392916,0.3705304,112130.0,112120.0,1.34269807]
[1756131393892,0.3705304,112130.0,112120.0,1.33569807]
[1756131394413,0.3705304,112130.0,112120.0,1.33669807]
[1756131395046,0.54889479,112130.0,112120.0,1.33669807]
[1756131395259,0.35383013,112130.0,112120.0,1.33669807]
[1756131395463,0.35071013,112130.0,112120.0,1.33878807]
[1756131395664,0.34236,112130.0,112120.0,1.33669807]
[1756131395866,0.34236,112130.0,112120.0,1.73669807]
[1756131396071,0.00236,112130.0,112120.0,1.73669807]
[1756131396693,0.00236,112130.0,112120.0,1.73878807]
[1756131397156,0.00548,112130.0,112120.0,1.73669807]
[1756131397370,0.18384439,112130.0,112120.0,1.15823777]
[1756131397588,0.18384439,112130.0,112120.0,1.07135302]
[1756131397797,0.18384439,112130.0,112120.0,1.053904]
[1756131398145,0.19218877,112130.0,112120.0,1.053904]
[1756131398352,0.22091149,112130.0,112120.0,1.053904]
[1756131398737,0.22925418,112130.0,112120.0,1.053904]
[1756131399134,0.22091149,112130.0,112120.0,1.053904]
[1756131399579,0.22091149,112130.0,112120.0,0.888064]
[1756131399752,0.22091149,112130.0,112120.0,1.053904]
[1756131400130,0.24593597,112130.0,112120.0,0.888064]
[1756131400344,0.24593111,112130.0,112120.0,0.888064]
[1756131400574,0.24593111,112130.0,112120.0,1.053864]
[1756131400807,0.23759105,112130.0,112120.0,1.053864]
[1756131401228,0.24592712,112130.0,112120.0,1.053864]
[1756131401437,0.24592712,112130.0,112120.0,1.052864]
[1756131402092,0.24692712,112130.0,112120.0,1.052864]
[1756131402298,0.62769261,112130.0,112120.0,1.052864]
[1756131402711,0.57124964,112130.0,112120.0,1.052864]
[1756131402918,0.5879203,112130.0,112120.0,1.052824]
[1756131403588,0.5879203,112130.0,112120.0,0.887064]
[1756131404217,0.5879203,112130.0,112120.0,1.052824]
[1756131405955,0.5879203,112130.0,112120.0,0.887064]
[1756131406173,0.66453755,112130.0,112120.0,0.887064]
[1756131406388,0.66453755,112130.0,112120.0,0.39408863]
[1756131406607,5.6707858,112130.0,112120.0,0.2038078]
[1756131406819,5.6707858,112130.0,112110.0,0.16572]
[1756131406820,0.34891901,112120.0,112110.0,0.16572]
[1756131407028,5.64444811,112120.0,112110.0,0.16572]
[1756131407253,0.51841213,112100.0,112090.0,0.06874374]
[1756131407466,0.53723501,112100.0,112090.0,0.00014374]
[1756131407651,0.54035501,112100.0,112090.0,0.16586374]
[1756131407891,0.54868425,112100.0,112090.0,0.16586374]
[1756131408099,0.56719201,112100.0,112090.0,0.16586374]
[1756131408538,0.58115631,112100.0,112090.0,0.16586374]
[1756131409414,0.63859906,112100.0,112090.0,0.00014374]
[1756131409640,5.69981903,112100.0,112090.0,0.00014374]
[1756131409870,5.64691951,112100.0,112090.0,0.00014374]
[1756131410490,5.58947676,112100.0,112090.0,0.00014374]
[1756131410900,0.58947676,112100.0,112090.0,0.00014374]
[1756131411103,0.59147676,112100.0,112090.0,0.00014374]
[1756131411519,0.59447676,112100.0,112090.0,0.00014374]
[1756131411938,0.58051246,112100.0,112090.0,0.00014374]
[1756131412150,5.65640474,112100.0,112090.0,0.00014374]
[1756131412364,0.65640474,112100.0,112090.0,0.00014374]
[1756131412569,0.58046936,112100.0,112090.0,0.00014374]
[1756131413207,0.57734936,112100.0,112090.0,0.00014374]
[1756131413425,0.57734936,112100.0,112090.0,0.00223374]
[1756131413873,0.57518936,112100.0,112090.0,0.00223374]
[1756131414084,0.57734936,112100.0,112090.0,0.00223374]
[1756131414290,0.65302133,112100.0,112090.0,0.00014374]
[1756131414496,0.43133111,112100.0,112090.0,0.00014374]
[1756131414675,0.53407127,112100.0,112090.0,0.00223374]
[1756131415192,0.54603526,112100.0,112090.0,0.00223374]
[1756131415844,0.54602872,112100.0,112090.0,0.00423374]
[1756131416045,0.54602872,112100.0,112090.0,0.00214374]
[1756131416538,0.62188463,112100.0,112090.0,0.00214374]
[1756131416895,0.62088463,112100.0,112090.0,0.00214374]
[1756131417544,0.54503872,112100.0,112090.0,0.00415374]
[1756131418086,0.54386872,112100.0,112090.0,0.00738374]
[1756131418288,0.54603872,112100.0,112090.0,0.00214374]
[1756131418717,0.54386872,112100.0,112090.0,0.00738374]
[1756131418927,0.54386872,112100.0,112090.0,0.00415374]
[1756131419139,0.54386872,112100.0,112090.0,0.17294374]
[1756131419354,0.03158427,112100.0,112090.0,1.68857664]
[1756131419591,0.01496399,112100.0,112090.0,0.72390555]
[1756131419793,0.01496399,112100.0,112090.0,0.72386555]
[1756131420010,0.01496399,112100.0,112090.0,0.85566555]
[1756131420429,0.001,112100.0,112090.0,1.82033664]
[1756131420638,0.01396052,112120.0,112110.0,0.19584523]
[1756131420839,0.02227414,112120.0,112110.0,0.51889998]
[1756131421082,0.21563274,112130.0,112110.0,0.52159998]
[1756131421307,0.0249457,112120.0,112110.0,0.52159998]
[1756131421512,0.0002,112130.0,112120.0,0.1783803]
[1756131421726,0.17856439,112130.0,112120.0,0.00201]
[1756131421933,0.54567815,112130.0,112120.0,0.00201]
[1756131422160,0.54877882,112130.0,112120.0,0.16749]
[1756131422998,0.54877882,112130.0,112120.0,0.00201]
[1756131423204,0.36514443,112130.0,112120.0,0.16749]
[1756131423449,0.54350882,112130.0,112120.0,0.17241975]
[1756131423661,0.54350882,112130.0,112120.0,0.00201]
[1756131423891,0.1783803,112120.0,112110.0,0.57297377]
[1756131424112,0.51856439,112130.0,112110.0,0.91680998]
[1756131424318,0.36247812,112130.0,112120.0,0.1783803]
[1756131424528,0.55748022,112130.0,112120.0,0.00423975]
[1756131424751,0.21728022,112130.0,112120.0,0.00423975]
[1756131424952,0.21728022,112130.0,112120.0,0.00201]
[1756131425182,0.21728022,112130.0,112120.0,0.00301]
[1756131425391,0.21728022,112130.0,112120.0,0.18362005]
[1756131425599,0.21945022,112130.0,112120.0,0.00301]
[1756131425803,0.21728022,112130.0,112120.0,0.16841]
[1756131426143,0.21728022,112130.0,112120.0,0.43661]
[1756131427341,0.03891583,112130.0,112120.0,0.6149903]
[1756131427539,0.2172837,112130.0,112120.0,0.43661]
[1756131427995,0.2172837,112130.0,112120.0,0.6176903]
[1756131428171,0.03891931,112130.0,112120.0,0.63513932]
[1756131428371,0.01395924,112130.0,112120.0,1.68669516]
[1756131428819,0.01395924,112130.0,112120.0,1.67712954]
[1756131429237,0.01395924,112130.0,112120.0,1.11245845]
[1756131430374,0.19759363,112130.0,112120.0,1.11734407]
[1756131430579,0.19232363,112130.0,112120.0,0.95202407]
[1756131430785,0.19759363,112130.0,112120.0,0.68564902]
[1756131430993,0.17834915,112140.0,112120.0,1.03041919]
[1756131431205,0.17836439,112130.0,112120.0,0.85203902]
[1756131431406,0.17836439,112130.0,112120.0,0.45203902]
[1756131431618,0.18144915,112140.0,112120.0,0.63041932]
[1756131431818,0.20639955,112140.0,112120.0,0.63041932]
[1756131432205,0.0249504,112140.0,112130.0,0.19804296]
[1756131432447,0.18666529,112140.0,112130.0,0.19692341]
[1756131432667,0.19193529,112140.0,112130.0,0.19692341]
[1756131433115,0.19193529,112140.0,112130.0,0.01855902]
[1756131433321,0.19293529,112140.0,112130.0,0.01855902]
[1756131433542,0.19198331,112140.0,112130.0,0.01855902]
[1756131433788,4.802e-05,112140.0,112130.0,0.19915296]
[1756131433997,4.802e-05,112140.0,112130.0,0.55269816]
[1756131434441,0.00104802,112140.0,112130.0,1.51736925]
[1756131435197,0.00104802,112140.0,112130.0,1.46360925]
[1756131435413,0.00104802,112140.0,112130.0,1.86360925]
[1756131435648,0.00104802,112140.0,112130.0,2.17230277]
[1756131436262,4.802e-05,112140.0,112130.0,2.17230277]
[1756131436982,4.802e-05,112140.0,112130.0,2.17330277]
[1756131437203,4.802e-05,112140.0,112130.0,2.18325339]
[1756131437430,4.802e-05,112140.0,112130.0,1.91405339]
[1756131437655,4.802e-05,112140.0,112130.0,1.90410277]
[1756131438121,0.18246433,112170.0,112160.0,0.19576571]
[1756131438313,0.18246433,112170.0,112160.0,0.42948571]
[1756131438314,0.19191705,112170.0,112160.0,0.42948571]
[1756131439259,0.19191705,112170.0,112160.0,0.43059571]
[1756131439480,0.00834626,112170.0,112160.0,0.43059571]
[1756131439969,0.01361626,112170.0,112160.0,0.43059571]
[1756131440200,0.18361881,112170.0,112160.0,0.43059571]
[1756131440451,0.00314802,112170.0,112160.0,1.48211155]
[1756131440674,4.802e-05,112170.0,112160.0,0.51744046]
[1756131441095,4.802e-05,112170.0,112160.0,0.51844046]
[1756131441749,4.802e-05,112170.0,112160.0,0.51744046]
[1756131443774,4.802e-05,112170.0,112160.0,0.51844046]
[1756131444081,4.802e-05,112170.0,112160.0,0.91944046]
[1756131444324,4.802e-05,112170.0,112160.0,1.88411155]
[1756131444544,4.802e-05,112170.0,112160.0,2.02462564]
[1756131444774,4.802e-05,112170.0,112160.0,1.05995455]
[1756131444993,4.802e-05,112170.0,112160.0,2.02462564]
[1756131445938,4.802e-05,112170.0,112160.0,2.02362564]
[1756131446563,4.802e-05,112170.0,112160.0,1.92293564]
[1756131446787,4.802e-05,112170.0,112160.0,0.95826455]
[1756131447012,4.802e-05,112170.0,112160.0,0.95810455]
[1756131447233,4.802e-05,112170.0,112160.0,0.96836684]
[1756131447459,4.802e-05,112170.0,112160.0,1.93303793]
[1756131448353,4.802e-05,112170.0,112160.0,1.93603793]
[1756131448581,4.802e-05,112170.0,112160.0,1.94072793]
[1756131448807,4.802e-05,112170.0,112160.0,2.04172793]
[1756131449045,4.802e-05,112170.0,112160.0,2.52872793]
[1756131449291,4.802e-05,112170.0,112160.0,2.52472793]
[1756131449531,4.802e-05,112170.0,112160.0,2.52872793]
[1756131449810,4.802e-05,112170.0,112160.0,1.56405684]
[1756131450057,4.802e-05,112170.0,112160.0,2.53068793]
[1756131450782,4.802e-05,112170.0,112160.0,2.52868793]
[1756131451708,4.802e-05,112170.0,112160.0,2.36380793]
[1756131451971,4.802e-05,112170.0,112160.0,1.29844684]
[1756131452200,4.802e-05,112170.0,112160.0,1.56328684]
[1756131452428,4.802e-05,112170.0,112160.0,1.31624684]
[1756131452635,4.802e-05,112170.0,112160.0,2.27691793]
[1756131453369,4.802e-05,112170.0,112160.0,2.28191793]
[1756131453594,4.802e-05,112170.0,112160.0,1.31424684]
[1756131453799,0.00503802,112170.0,112160.0,0.96287455]
[1756131454009,0.00503802,112170.0,112160.0,0.96398455]
[1756131454260,0.18716577,112200.0,112180.0,0.17828264]
[1756131454468,0.00204,112190.0,112180.0,0.28261641]
[1756131454684,0.01034955,112190.0,112180.0,0.51597641]
[1756131454892,0.01034955,112190.0,112180.0,1.4828075]
[1756131455098,0.00830955,112190.0,112180.0,2.1001675]
[1756131457595,0.00048025,112200.0,112190.0,0.01744902]
[1756131457811,0.00048025,112200.0,112190.0,1.25693058]
[1756131457812,0.00879365,112200.0,112190.0,1.25693058]
[1756131458032,0.00879365,112200.0,112190.0,1.25247386]
[1756131458251,0.00879365,112200.0,112190.0,1.2767535]
[1756131458252,0.00048025,112200.0,112190.0,1.2767535]
[1756131458470,0.00048025,112200.0,112190.0,1.6767535]
[1756131458688,0.00048025,112200.0,112190.0,2.1167535]
[1756131459812,0.00048025,112200.0,112190.0,2.2814335]
[1756131460022,0.00048025,112200.0,112190.0,2.25715386]
[1756131460868,0.00048025,112200.0,112190.0,2.27953561]
[1756131461306,0.00048025,112200.0,112190.0,2.11485561]
[1756131461515,0.00048025,112200.0,112190.0,2.27849561]
[1756131461955,0.18737376,112250.0,112240.0,0.17818959]
[1756131461956,0.00315,112250.0,112240.0,0.17818959]
[1756131462172,0.53167313,112250.0,112240.0,0.32008475]
[1756131462381,0.54829198,112250.0,112240.0,0.32008475]
[1756131462584,0.54829198,112250.0,112240.0,0.55544475]
[1756131462794,0.54829198,112250.0,112240.0,0.57289377]
[1756131463010,0.54829198,112250.0,112240.0,0.17289377]
[1756131463230,0.54829198,112250.0,112240.0,0.33763751]
[1756131464269,0.54829198,112250.0,112240.0,0.17303751]
[1756131464489,0.54829198,112250.0,112240.0,0.33759751]
[1756131464710,0.54929198,112250.0,112240.0,0.17303751]
[1756131464929,0.54929198,112250.0,112240.0,0.25071276]
[1756131465140,0.56323658,112250.0,112240.0,0.25071276]
[1756131465353,0.56323658,112250.0,112240.0,0.08615276]
[1756131465561,0.56323658,112250.0,112240.0,0.06870374]
[1756131465778,0.57297247,112250.0,112240.0,0.06870374]
[1756131465988,0.57497247,112250.0,112240.0,0.23326374]
[1756131468358,0.57497247,112250.0,112240.0,0.33759751]
[1756131468787,0.57497247,112250.0,112240.0,0.25063276]
[1756131469871,0.5750024,112250.0,112240.0,0.25063276]
[1756131470794,0.5750024,112250.0,112240.0,0.25059276]
[1756131471868,0.5750024,112250.0,112240.0,0.06870374]
[1756131472073,0.5750024,112250.0,112240.0,0.23314374]
[1756131472479,0.5750024,112250.0,112240.0,0.25059276]
[1756131473977,0.5750024,112250.0,112240.0,0.24695276]
[1756131474186,0.5750024,112250.0,112240.0,0.24691276]
[1756131474592,0.5750024,112250.0,112240.0,0.24907276]
[1756131475026,0.39183869,112250.0,112240.0,0.5171871]
[1756131475249,0.5560678,112250.0,112240.0,0.5171871]
[1756131475690,0.37791224,112250.0,112240.0,0.5173171]
[1756131476160,0.02817635,112250.0,112240.0,1.58198819]
[1756131476376,0.01665695,112250.0,112240.0,1.58198819]
[1756131477442,0.01008,112280.0,112270.0,1.16026208]
[1756131477649,0.01008,112280.0,112270.0,0.56729574]
[1756131477855,0.01008,112280.0,112270.0,1.13161574]
[1756131478062,0.01008,112280.0,112270.0,1.13478574]
[1756131478276,0.01008,112280.0,112270.0,2.09945683]
[1756131478932,0.01008,112280.0,112270.0,1.93513683]
[1756131479140,0.0260267,112280.0,112270.0,0.96729574]
[1756131479353,0.0260267,112280.0,112270.0,1.13153574]
[1756131479799,0.0290067,112280.0,112270.0,1.12951574]
[1756131480008,0.0240167,112280.0,112270.0,1.13470574]
[1756131480216,0.0240167,112280.0,112270.0,0.96829574]
[1756131480421,0.0260267,112280.0,112270.0,1.13253574]
[1756131480630,0.0290067,112280.0,112270.0,1.13051574]
[1756131480834,0.0260267,112280.0,112270.0,1.13553574]
[1756131481083,0.0260267,112280.0,112270.0,1.13351574]
[1756131481084,0.0290067,112280.0,112270.0,1.13351574]
[1756131481300,0.0290067,112280.0,112270.0,1.13051574]
[1756131481515,0.0240167,112280.0,112270.0,1.70037683]
[1756131482602,0.0240167,112280.0,112270.0,1.70033683]
[1756131482808,0.01008,112280.0,112270.0,2.14033683]
[1756131483021,0.01008,112280.0,112270.0,2.14233683]
[1756131483224,0.01008,112280.0,112270.0,0.57029574]
[1756131483439,0.01008,112280.0,112270.0,0.73445574]
[1756131483863,0.01209,112280.0,112270.0,0.73545574]
[1756131484075,0.01008,112280.0,112270.0,1.70329683]
[1756131484285,0.01008,112280.0,112270.0,0.73862574]
[1756131484501,0.01008,112280.0,112270.0,1.70229683]
[1756131484893,0.01008,112280.0,112270.0,1.70429683]
[1756131485175,0.01008,112280.0,112270.0,1.54013683]
[1756131485402,0.01008,112280.0,112270.0,1.94013683]
[1756131485615,0.01008,112280.0,112270.0,2.10425683]
[1756131487602,0.01008,112280.0,112270.0,2.69425683]
[1756131488028,1e-08,112280.0,112270.0,2.69425683]
[1756131488863,1e-08,112280.0,112270.0,2.69225683]
[1756131489274,1e-08,112280.0,112270.0,2.69025683]
[1756131489480,1e-08,112280.0,112270.0,1.56346574]
[1756131489688,1e-08,112280.0,112270.0,1.31346574]
[1756131489890,1e-08,112280.0,112270.0,2.59221683]
[1756131490089,1e-08,112280.0,112270.0,2.59721683]
[1756131490989,1e-08,112280.0,112270.0,2.44721683]
[1756131491192,1e-08,112280.0,112270.0,2.59721683]
[1756131491813,1e-08,112280.0,112270.0,2.59521683]
[1756131492223,1e-08,112280.0,112270.0,2.43113683]
[1756131492398,1e-08,112280.0,112270.0,2.59717683]
[1756131493751,1e-08,112280.0,112270.0,2.42655781]
[1756131493958,1e-08,112280.0,112270.0,2.44400683]
[1756131494374,1e-08,112280.0,112270.0,2.43900683]
[1756131494587,1e-08,112280.0,112270.0,2.44217683]
[1756131495079,1e-08,112280.0,112270.0,2.44617683]
[1756131495301,1e-08,112280.0,112270.0,2.28213683]
[1756131495529,1e-08,112280.0,112270.0,2.44413683]
[1756131495958,1e-08,112280.0,112270.0,1.47946574]
[1756131496176,1e-08,112280.0,112270.0,2.44413683]
[1756131496405,1e-08,112280.0,112270.0,2.44613683]
[1756131497299,1e-08,112280.0,112270.0,2.44913683]
[1756131498171,1e-08,112280.0,112270.0,1.48446574]
[1756131498400,1e-08,112280.0,112270.0,2.44913683]
[1756131499286,1e-08,112280.0,112270.0,2.44513683]
[1756131499711,1e-08,112280.0,112270.0,2.54513683]
[1756131499919,1e-08,112280.0,112270.0,2.44913683]
[1756131500133,1e-08,112280.0,112270.0,1.48446574]
[1756131500310,1e-08,112280.0,112270.0,2.44913683]
[1756131500560,1e-08,112280.0,112270.0,2.44513683]
[1756131500768,1e-08,112280.0,112270.0,2.28113683]
[1756131500975,1e-08,112280.0,112270.0,1.47538574]
[1756131501191,1e-08,112280.0,112270.0,2.44405683]
[1756131501399,1e-08,112280.0,112270.0,2.44088683]
[1756131501587,1e-08,112280.0,112270.0,2.27696683]
[1756131501823,1e-08,112280.0,112270.0,2.44088683]
[1756131502058,1e-08,112280.0,112270.0,2.44405683]
[1756131502283,1e-08,112280.0,112270.0,2.28013683]
[1756131502500,1e-08,112280.0,112270.0,2.69405683]
[1756131502926,1e-08,112280.0,112270.0,2.69005683]
[1756131503130,1e-08,112280.0,112270.0,2.98765258]
[1756131503338,1e-08,112280.0,112270.0,3.05124865]
[1756131503749,1e-08,112280.0,112270.0,3.05324865]
[1756131504166,1e-08,112280.0,112270.0,3.05124865]
[1756131504581,1e-08,112280.0,112270.0,3.05424865]
[1756131505040,1e-08,112280.0,112270.0,2.89032865]
[1756131505328,1e-08,112280.0,112270.0,3.05920865]
[1756131505549,1e-08,112280.0,112270.0,3.05603865]
[1756131506283,1e-08,112280.0,112270.0,3.05915865]
[1756131506518,1e-08,112280.0,112270.0,3.05415865]
[1756131506946,1e-08,112280.0,112270.0,2.79027865]
[1756131507180,1e-08,112280.0,112270.0,3.05415865]
[1756131507399,1e-08,112280.0,112270.0,3.05411865]
[1756131507611,1e-08,112280.0,112270.0,2.79027865]
[1756131507851,1e-08,112280.0,112270.0,1.82248756]
[1756131508069,1e-08,112280.0,112270.0,2.95411865]
[1756131508491,1e-08,112280.0,112270.0,2.95363748]
[1756131508914,0.00198001,112280.0,112270.0,2.95051748]
[1756131509391,1e-08,112280.0,112270.0,2.95363748]
[1756131510200,1e-08,112280.0,112270.0,2.80663748]
[1756131510452,1e-08,112290.0,112280.0,0.44557513]
[1756131510666,1e-08,112290.0,112280.0,1.66613097]
[1756131510879,1e-08,112290.0,112280.0,1.50233097]
[1756131511109,1e-08,112290.0,112280.0,1.66301097]
[1756131511329,1e-08,112290.0,112280.0,2.06613097]
[1756131511533,0.00198001,112290.0,112280.0,1.79713097]
[1756131511770,0.00198001,112290.0,112280.0,2.02418961]
[1756131511997,0.00494001,112290.0,112280.0,1.05951852]
[1756131512203,0.00198001,112290.0,112280.0,2.02626961]
[1756131512623,1e-08,112290.0,112280.0,2.02626961]
[1756131512843,0.18695969,112340.0,112320.0,0.17805234]
[1756131513102,0.01188869,112330.0,112320.0,0.17805234]
[1756131513314,0.02701858,112330.0,112320.0,0.41033234]
[1756131513531,0.2050654,112330.0,112320.0,0.23228]
[1756131513746,0.2050654,112330.0,112320.0,0.23224]
[1756131513956,0.2050654,112330.0,112320.0,0.06848]
[1756131514160,0.20554624,112330.0,112320.0,0.23224]
[1756131514375,0.20554624,112330.0,112320.0,0.06848]
[1756131514590,0.2055476,112330.0,112320.0,0.23224]
[1756131514805,0.5485076,112330.0,112320.0,0.06848]
[1756131515016,0.5485076,112330.0,112320.0,0.23224]
[1756131516138,0.59895496,112330.0,112320.0,0.06848]
[1756131516346,0.59895496,112330.0,112320.0,0.23224]
[1756131516825,0.59895496,112330.0,112320.0,0.2322]
[1756131517776,0.57391502,112330.0,112320.0,0.2322]
[1756131518017,0.59897321,112330.0,112320.0,0.2322]
[1756131518688,0.5989732,112330.0,112320.0,0.2322]
[1756131518896,0.5999732,112330.0,112320.0,0.2322]
[1756131520615,0.5999732,112330.0,112320.0,0.06848]
[1756131521549,0.5999732,112330.0,112320.0,0.23216]
[1756131522729,0.05218838,112330.0,112320.0,0.42767169]
[1756131522973,0.21630024,112330.0,112320.0,0.42975169]
[1756131523220,0.21630024,112330.0,112320.0,0.42767169]
[1756131524069,0.02851902,112330.0,112320.0,0.51663644]
[1756131524277,0.02653902,112330.0,112320.0,0.56024162]
[1756131524946,0.20656584,112330.0,112320.0,0.55712162]
[1756131525171,0.02653902,112330.0,112320.0,0.56024162]
[1756131525396,0.02851902,112330.0,112320.0,0.56024162]
[1756131525616,0.20656584,112330.0,112320.0,0.55712162]
[1756131525833,0.02751902,112330.0,112320.0,0.55712162]
[1756131526243,0.20852584,112330.0,112320.0,0.21329895]
[1756131526449,0.20017311,112330.0,112320.0,0.37693895]
[1756131526865,0.20117311,112330.0,112320.0,0.39136162]
[1756131527083,0.20017311,112330.0,112320.0,0.17281377]
[1756131527293,0.20017311,112330.0,112320.0,0.23208]
[1756131527685,0.20017196,112330.0,112320.0,0.23208]
[1756131527895,0.20117196,112330.0,112320.0,0.06848]
[1756131528074,0.20952443,112330.0,112320.0,0.06848]
[1756131528278,0.20952443,112330.0,112320.0,0.23208]
[1756131529177,0.23630143,112330.0,112320.0,0.23208]
[1756131529377,0.20952443,112330.0,112320.0,0.23208]
[1756131529591,0.20952443,112330.0,112320.0,0.06848]
[1756131529803,0.23630143,112330.0,112320.0,0.23204]
[1756131530197,0.20952443,112330.0,112320.0,0.23204]
[1756131530423,0.20952443,112330.0,112320.0,0.23412]
[1756131530424,0.20656443,112330.0,112320.0,0.23412]
[1756131530637,0.01818514,112330.0,112320.0,0.51651644]
[1756131530858,0.01818514,112330.0,112320.0,0.51963644]
[1756131531531,0.00148084,112330.0,112320.0,1.48430753]
[1756131531729,0.00148084,112330.0,112320.0,0.91963644]
[1756131532344,0.00148084,112330.0,112320.0,1.89386144]
[1756131532577,0.00148084,112330.0,112320.0,1.88430753]
[1756131533143,0.00148084,112330.0,112320.0,0.91963644]
[1756131533347,0.00048084,112330.0,112320.0,1.88430753]
[1756131534088,0.00148084,112330.0,112320.0,1.88430753]
[1756131534209,0.00148084,112330.0,112320.0,0.98275134]
[1756131534413,0.00048084,112330.0,112320.0,1.94742243]
[1756131535030,0.00048084,112330.0,112320.0,1.95710059]
[1756131535257,0.00048084,112330.0,112320.0,1.95810059]
[1756131535487,0.00075913,112350.0,112340.0,0.17803097]
[1756131535701,0.00075913,112350.0,112340.0,0.36111373]
[1756131535996,0.00075913,112350.0,112340.0,0.36404373]
[1756131536225,0.00075913,112350.0,112340.0,1.32871482]
[1756131536483,0.00075913,112350.0,112340.0,0.76404373]
[1756131536696,0.00075913,112350.0,112340.0,1.81559957]
[1756131536929,0.00075913,112350.0,112340.0,0.85092848]
[1756131537407,0.00075913,112350.0,112340.0,0.72741316]
[1756131537605,0.00075913,112350.0,112340.0,1.85884425]
[1756131537726,0.00075913,112350.0,112340.0,0.89417316]
[1756131538142,0.00075913,112350.0,112340.0,1.85884425]
[1756131538948,0.00075913,112350.0,112340.0,1.86544425]
[1756131539470,0.00075913,112350.0,112340.0,0.90069316]
[1756131539728,0.00075913,112350.0,112340.0,1.86532425]
[1756131540066,0.00272913,112350.0,112340.0,0.73048316]
[1756131540286,0.00272913,112350.0,112340.0,0.54953219]
[1756131540287,0.18074426,112350.0,112340.0,0.54953219]
[1756131540503,0.18371426,112350.0,112340.0,0.70155317]
[1756131540865,0.00075913,112350.0,112340.0,0.88452414]
[1756131541309,0.00075913,112350.0,112340.0,0.88252414]
[1756131541546,0.00272913,112350.0,112340.0,0.88252414]
[1756131541741,0.00075913,112350.0,112340.0,0.88252414]
[1756131541983,0.00075913,112350.0,112340.0,0.88352414]
[1756131542205,0.00075913,112350.0,112340.0,0.87952414]
[1756131542441,0.18074426,112350.0,112340.0,0.53000317]
[1756131542672,0.18074426,112350.0,112340.0,0.69659317]
[1756131542890,0.18074426,112350.0,112340.0,0.69859317]
[1756131543119,0.17877426,112350.0,112340.0,0.71296414]
[1756131543339,0.00272913,112350.0,112340.0,0.87662414]
[1756131543809,0.18371426,112350.0,112340.0,0.52999317]
[1756131543815,0.18371426,112350.0,112340.0,0.87650414]
[1756131544047,0.00272913,112350.0,112340.0,0.87851414]
[1756131544259,0.00075913,112350.0,112340.0,0.88144414]
[1756131544468,0.00075913,112350.0,112340.0,0.48144414]
[1756131544894,0.00272913,112350.0,112340.0,0.47650414]
[1756131545107,0.18074426,112350.0,112340.0,0.47650414]
[1756131545312,0.18074426,112350.0,112340.0,0.47851414]
[1756131545522,0.00272913,112350.0,112340.0,0.47851414]
[1756131545934,0.00272913,112350.0,112340.0,0.48144414]
[1756131546357,0.00272913,112350.0,112340.0,0.47851414]
[1756131546843,0.00075913,112350.0,112340.0,0.48144414]
[1756131547076,0.00075913,112350.0,112340.0,1.46356425]
[1756131547548,0.00075913,112350.0,112340.0,0.50025316]
[1756131548006,0.00215913,112350.0,112340.0,0.14945219]
[1756131548222,0.00215913,112350.0,112340.0,0.32748316]
[1756131548428,0.00215913,112350.0,112340.0,0.49523316]
[1756131548651,0.00215913,112350.0,112340.0,0.92660422]
[1756131548866,0.00215913,112350.0,112340.0,0.92861422]
[1756131549075,0.00075913,112350.0,112340.0,0.93154422]
[1756131549531,0.00075913,112350.0,112340.0,0.76178422]
[1756131549786,0.00215913,112350.0,112340.0,0.75684422]
[1756131550033,0.18017426,112350.0,112340.0,0.75038325]
[1756131550257,0.18017426,112350.0,112340.0,0.92841422]
[1756131550459,0.18017426,112350.0,112340.0,0.9109652]
[1756131550715,0.18017426,112350.0,112340.0,0.52139955]
[1756131550952,0.18312426,112350.0,112340.0,0.66018849]
[1756131551185,0.18017426,112350.0,112340.0,0.00314374]
[1756131551445,0.18312426,112350.0,112340.0,0.17326374]